fUST/lending_fUST_20240721
["ID","MTS","AMOUNT","RATE_DAILY","PERIOD"]
[332762257,1721507451904,-500.0,0.00013972,2]
[332762258,1721507451913,-500.0,0.00013972,2]
[332762259,1721507451923,-520.92944104,0.00013972,2]
[332762260,1721507451934,-500.0,0.00013972,2]
[332762261,1721507451944,-11096.32,0.00013972,2]
[332762262,1721507451955,-732.38,0.00013972,2]
[332762263,1721507451967,-4979.9,0.00013972,2]
[332762264,1721507451978,-606.15,0.00013972,2]
[332762265,1721507451988,-500.0,0.00013972,2]
[332762266,1721507451997,-500.0,0.00013972,2]
[332762267,1721507452009,-500.0,0.00013972,2]
[332762268,1721507452020,-1373.89,0.00013972,2]
[332762269,1721507452031,-2679.12,0.00013972,2]
[332762270,1721507452041,-4593.9,0.00013972,2]
[332762271,1721507452051,-500.0,0.00013972,2]
[332762272,1721507452063,-3152.44,0.00013972,2]
[332762273,1721507452073,-2055.25,0.00013972,2]
[332762274,1721507452083,-500.0,0.00013972,2]
[332762275,1721507452093,-500.0,0.00013972,2]
[332762276,1721507452103,-1077.09,0.00013972,2]
[332762277,1721507452113,-615.57,0.00013972,2]
[332762278,1721507452122,-500.0,0.00013972,2]
[332762279,1721507452135,-653.33,0.00013972,2]
[332762280,1721507452144,-500.0,0.00013972,2]
[332762281,1721507452154,-1961.3,0.00013972,2]
[332762282,1721507452164,-1149.23,0.00013972,2]
[332762283,1721507452173,-588.32,0.00013972,2]
[332762284,1721507452182,-500.0,0.00013972,2]
[332762285,1721507452192,-523.71,0.00013972,2]
[332762286,1721507452202,-1717.99,0.00013972,2]
[332762287,1721507452212,-500.0,0.00013972,2]
[332762288,1721507452221,-611.84,0.00013972,2]
[332762289,1721507452231,-1361.98,0.00013972,2]
[332762290,1721507452241,-500.0,0.00013972,2]
[332762291,1721507452251,-2600.56,0.00013972,2]
[332762292,1721507452260,-3138.15,0.00013972,2]
[332762293,1721507452269,-500.0,0.00013972,2]
[332762294,1721507452279,-1486.97,0.00013972,2]
[332762295,1721507452288,-2758.06,0.00013972,2]
[332762296,1721507452300,-500.0,0.00013972,2]
[332762297,1721507452311,-500.0,0.00013972,2]
[332762298,1721507452323,-500.0,0.00013972,2]
[332762299,1721507452333,-1314.88,0.00013972,2]
[332762300,1721507452344,-1235.35,0.00013972,2]
[332762301,1721507452355,-500.0,0.00013972,2]
[332762302,1721507452365,-944.37,0.00013972,2]
[332762303,1721507452375,-533.97409384,0.00013972,2]
[332762304,1721507452386,-1593.99,0.00013972,2]
[332762305,1721507452396,-500.0,0.00013972,2]
[332762306,1721507452406,-500.0,0.00013972,2]
[332762307,1721507452416,-1289.95,0.00013972,2]
[332762308,1721507452426,-1524.61,0.00013972,2]
[332762309,1721507452436,-950.65,0.00013972,2]
[332762310,1721507452446,-982.46,0.00013972,2]
[332762311,1721507452455,-9556.66,0.00013972,2]
[332762312,1721507452464,-500.0,0.00013972,2]
[332762313,1721507452474,-33384.86,0.00013972,2]
[332762314,1721507452485,-1089.64,0.00013972,2]
[332762315,1721507452498,-500.0,0.00013972,2]
[332762316,1721507452510,-500.0,0.00013972,2]
[332762317,1721507452522,-500.0,0.00013972,2]
[332762318,1721507452533,-1464.73,0.00013972,2]
[332762319,1721507452544,-774.09,0.00013972,2]
[332762320,1721507452554,-922.08,0.00013972,2]
[332762321,1721507452565,-1588.67,0.00013972,2]
[332762322,1721507452575,-183.21500843,0.00013972,2]
[332762323,1721507452584,-502.54970071,0.00013972,2]
[332762324,1721507452596,-500.0,0.00013972,2]
[332762325,1721507452607,-500.0,0.00013972,2]
[332762326,1721507452618,-500.0,0.00013972,2]
[332762327,1721507452628,-500.0,0.00013972,2]
[332762328,1721507452637,-848.62,0.00013972,2]
[332762329,1721507452648,-510.81,0.00013972,2]
[332762330,1721507452658,-2131.14,0.00013972,2]
[332762331,1721507452667,-500.0,0.00013972,2]
[332762332,1721507452677,-500.0,0.00013972,2]
[332762333,1721507452686,-500.0,0.00013972,2]
[332762334,1721507452697,-2374.54,0.00013972,2]
[332762335,1721507452707,-500.0,0.00013972,2]
[332762336,1721507452717,-3023.06,0.00013972,2]
[332762337,1721507452727,-742.6,0.00013972,2]
[332762338,1721507452736,-500.0,0.00013972,2]
[332762339,1721507452746,-500.0,0.00013972,2]
[332762340,1721507452756,-500.0,0.00013972,2]
[332762341,1721507452766,-500.0,0.00013972,2]
[332762342,1721507452775,-500.0,0.00013972,2]
[332762343,1721507452785,-1361.91,0.00013972,2]
[332762344,1721507452794,-1323.32,0.00013972,2]
[332762345,1721507452804,-500.0,0.00013972,2]
[332762346,1721507452814,-500.0,0.00013972,2]
[332762347,1721507452823,-500.0,0.00013972,2]
[332762348,1721507452833,-526.48973884,0.00013972,2]
[332762349,1721507452843,-2248.5,0.00013972,2]
[332762350,1721507452852,-500.0,0.00013972,2]
[332762351,1721507452862,-2439.5,0.00013972,2]
[332762352,1721507452872,-1273.27,0.00013972,2]
[332762353,1721507452882,-505.36147925,0.00013972,2]
[332762354,1721507452891,-500.0,0.00013972,2]
[332762355,1721507452901,-14274.59,0.00013972,2]
[332762356,1721507452911,-500.0,0.00013972,2]
[332762357,1721507452921,-500.0,0.00013972,2]
[332762358,1721507452930,-500.0,0.00013972,2]
[332762359,1721507452941,-500.0,0.00013972,2]
[332762360,1721507452953,-585.29,0.00013972,2]
[332762361,1721507452964,-525.3,0.00013972,2]
[332762362,1721507452975,-150.112233,0.00014,3]
[332762363,1721507452984,-154.9094073,0.00014,2]
[332762364,1721507452994,-293.8031846,0.00014,2]
[332762365,1721507453005,-200.0,0.00014036,2]
[332762366,1721507453014,-153.9016,0.00014036,2]
[332762367,1721507453024,-153.0,0.0001411,2]
[332762368,1721507453033,-153.0,0.0001411,2]
[332762369,1721507453042,-153.0,0.0001411,2]
[332762370,1721507453051,-153.0,0.0001411,2]
[332762371,1721507453060,-856.09,0.00014246,2]
[332762372,1721507453070,-500.0,0.00014246,2]
[332762373,1721507453079,-500.0,0.00014246,2]
[332762374,1721507453088,-500.0,0.00014246,2]
[332762375,1721507453098,-500.0,0.00014246,2]
[332762376,1721507453107,-812.17,0.00014246,2]
[332762377,1721507453117,-503.50562691,0.00014246,2]
[332762378,1721507453128,-500.0,0.00014246,2]
[332762379,1721507453137,-500.0,0.00014246,2]
[332762380,1721507453146,-933.32,0.00014246,2]
[332762381,1721507453156,-500.0,0.00014246,2]
[332762382,1721507453166,-286.05459025,0.00014246,2]
[332762383,1721507453176,-512.08117975,0.00014246,2]
[332762384,1721507453185,-778.5,0.00014246,2]
[332762385,1721507453196,-500.0,0.00014246,2]
[332762386,1721507453206,-1043.63,0.00014246,2]
[332762387,1721507453215,-545.40045561,0.00014246,2]
[332762388,1721507453226,-500.0,0.00014246,2]
[332762389,1721507453236,-500.0,0.00014246,2]
[332762390,1721507453247,-500.0,0.00014246,2]
[332762391,1721507453257,-579.52,0.00014246,2]
[332762392,1721507453267,-500.0,0.00014246,2]
[332762393,1721507453278,-669.97,0.00014246,2]
[332762394,1721507453288,-500.0,0.00014246,2]
[332762395,1721507453298,-500.0,0.00014246,2]
[332762396,1721507453308,-360.07193622,0.00014246,2]
[332762397,1721507453317,-500.0,0.00014246,2]
[332762398,1721507453327,-500.0,0.00014246,2]
[332762399,1721507453337,-500.0,0.00014246,2]
[332762400,1721507453347,-526.28,0.00014246,2]
[332762401,1721507453357,-500.0,0.00014246,2]
[332762402,1721507453367,-500.0,0.00014246,2]
[332762403,1721507453377,-1010.99,0.00014246,2]
[332762404,1721507453386,-500.0,0.00014246,2]
[332762405,1721507453398,-500.0,0.00014246,2]
[332762406,1721507453407,-500.0,0.00014246,2]
[332762407,1721507453417,-500.0,0.00014246,2]
[332762408,1721507453428,-940.75,0.00014246,2]
[332762409,1721507453437,-500.0,0.00014246,2]
[332762410,1721507453446,-500.0,0.00014246,2]
[332762411,1721507453456,-500.0,0.00014246,2]
[332762412,1721507453465,-500.0,0.00014246,2]
[332762413,1721507453475,-659.36,0.00014246,2]
[332762414,1721507453485,-500.0,0.00014246,2]
[332762415,1721507453495,-500.0,0.00014246,2]
[332762416,1721507453506,-500.0,0.00014246,2]
[332762417,1721507453515,-598.5,0.00014246,2]
[332762418,1721507453526,-500.0,0.00014246,2]
[332762419,1721507453536,-500.0,0.00014246,2]
[332762420,1721507453547,-500.0,0.00014246,2]
[332762421,1721507453559,-500.0,0.00014246,2]
[332762422,1721507453569,-527.11963763,0.00014246,2]
[332762423,1721507453579,-500.0,0.00014246,2]
[332762424,1721507453590,-500.0,0.00014246,2]
[332762425,1721507453601,-500.0,0.00014246,2]
[332762426,1721507453610,-500.0,0.00014246,2]
[332762427,1721507453619,-500.0,0.00014246,2]
[332762428,1721507453628,-500.0,0.00014246,2]
[332762429,1721507453638,-942.25,0.00014246,2]
[332762430,1721507453648,-500.0,0.00014246,2]
[332762431,1721507453657,-500.0,0.00014246,2]
[332762432,1721507453666,-471.64085717,0.00014246,2]
[332762433,1721507453676,-500.0,0.00014246,2]
[332762434,1721507453685,-381.21198987,0.00014246,2]
[332762435,1721507453694,-150.0,0.00014246,2]
[332762436,1721507453704,-255.62,0.00014246,2]
[332762437,1721507453714,-500.0,0.00014246,2]
[332762438,1721507453723,-500.0,0.00014246,2]
[332762439,1721507453733,-500.0,0.00014246,2]
[332762440,1721507453742,-507.62,0.00014246,2]
[332762441,1721507453752,-500.0,0.00014246,2]
[332762442,1721507453762,-673.62,0.00014246,2]
[332762443,1721507453771,-503.98,0.00014246,2]
[332762444,1721507453780,-500.0,0.00014246,2]
[332762445,1721507453790,-256.28354357,0.00014246,2]
[332762446,1721507453799,-352.51834169,0.00014246,2]
[332762447,1721507453809,-500.0,0.00014246,2]
[332762448,1721507453818,-2207.67,0.00014246,2]
[332762449,1721507453827,-274.77327132,0.00014246,2]
[332762450,1721507453837,-500.0,0.00014246,2]
[332762451,1721507453846,-663.18,0.00014246,2]
[332762452,1721507453859,-500.0,0.00014246,2]
[332762453,1721507453868,-616.11,0.00014246,2]
[332762454,1721507453878,-500.0,0.00014246,2]
[332762455,1721507453890,-500.0,0.00014246,2]
[332762456,1721507453945,-500.0,0.00014246,2]
[332762457,1721507453954,-610.06,0.00014246,2]
[332762458,1721507453964,-502.03335675,0.00014246,2]
[332762459,1721507453973,-500.0,0.00014246,2]
[332762460,1721507453984,-500.0,0.00014246,2]
[332762461,1721507453995,-500.0,0.00014246,2]
[332762462,1721507454004,-500.0,0.00014246,2]
[332762463,1721507454014,-500.0,0.00014246,2]
[332762464,1721507454024,-500.0,0.00014246,2]
[332762465,1721507454033,-683.83,0.00014246,2]
[332762466,1721507454042,-500.0,0.00014246,2]
[332762467,1721507454051,-500.0,0.00014246,2]
[332762468,1721507454061,-500.0,0.00014246,2]
[332762469,1721507454070,-782.62,0.00014246,2]
[332762470,1721507454079,-517.33,0.00014246,2]
[332762471,1721507454089,-3151.21,0.00014246,2]
[332762472,1721507454098,-500.0,0.00014246,2]
[332762473,1721507454108,-500.0,0.00014246,2]
[332762474,1721507454117,-840.58,0.00014246,2]
[332762475,1721507454126,-500.0,0.00014246,2]
[332762476,1721507454138,-506.27059481,0.00014246,2]
[332762477,1721507454152,-500.0,0.00014246,2]
[332762478,1721507454162,-1631.65,0.00014246,2]
[332762479,1721507454172,-626.98,0.00014246,2]
[332762480,1721507454181,-966.95,0.00014246,2]
[332762481,1721507454193,-500.0,0.00014246,2]
[332762482,1721507454202,-500.0,0.00014246,2]
[332762483,1721507454214,-781.68,0.00014246,2]
[332762484,1721507454225,-500.0,0.00014246,2]
[332762485,1721507454236,-2254.27,0.00014246,2]
[332762486,1721507454246,-500.0,0.00014246,2]
[332762487,1721507454256,-2931.06,0.00014246,2]
[332762488,1721507454265,-500.0,0.00014246,2]
[332762489,1721507454276,-500.0,0.00014246,2]
[332762490,1721507454288,-617.77,0.00014246,2]
[332762491,1721507454298,-653.01,0.00014246,2]
[332762492,1721507454307,-500.0,0.00014246,2]
[332762493,1721507454316,-1121.97,0.00014246,2]
[332762494,1721507454326,-500.0,0.00014246,2]
[332762495,1721507454335,-2062.41,0.00014246,2]
[332762496,1721507454344,-696.35,0.00014246,2]
[332762497,1721507454355,-500.0,0.00014246,2]
[332762498,1721507454364,-500.0,0.00014246,2]
[332762499,1721507454374,-500.0,0.00014246,2]
[332762500,1721507454383,-510.58623771,0.00014246,2]
[332762501,1721507454393,-1163.39,0.00014246,2]
[332762502,1721507454402,-500.0,0.00014246,2]
[332762503,1721507454412,-500.0,0.00014246,2]
[332762504,1721507454421,-500.0,0.00014246,2]
[332762505,1721507454430,-509.41848931,0.00014246,2]
[332762506,1721507454439,-500.0,0.00014246,2]
[332762507,1721507454449,-500.0,0.00014246,2]
[332762508,1721507454457,-1152.29,0.00014246,2]
[332762509,1721507454466,-500.0,0.00014246,2]
[332762510,1721507454476,-500.0,0.00014246,2]
[332762511,1721507454485,-1160.73,0.00014246,2]
[332762512,1721507454495,-500.0,0.00014246,2]
[332762513,1721507454504,-500.0,0.00014246,2]
[332762514,1721507454513,-722.0,0.00014246,2]
[332762515,1721507454523,-500.0,0.00014246,2]
[332762516,1721507454532,-500.0,0.00014246,2]
[332762517,1721507454542,-4128.71,0.00014246,2]
[332762518,1721507454551,-568.79,0.00014246,2]
[332762519,1721507454561,-500.0,0.00014246,2]
[332762520,1721507454570,-500.0,0.00014246,2]
[332762521,1721507454580,-500.0,0.00014246,2]
[332762522,1721507454589,-1470.23,0.00014246,2]
[332762523,1721507454598,-698.52,0.00014246,2]
[332762524,1721507454608,-500.0,0.00014246,2]
[332762525,1721507454617,-500.0,0.00014246,2]
[332762526,1721507454628,-500.0,0.00014246,2]
[332762527,1721507454638,-500.0,0.00014246,2]
[332762528,1721507454648,-500.0,0.00014246,2]
[332762529,1721507454657,-500.0,0.00014246,2]
[332762530,1721507454666,-594.58,0.00014246,2]
[332762531,1721507454676,-510.42578769,0.00014246,2]
[332762532,1721507454685,-1951.53,0.00014246,2]
[332762533,1721507454695,-612.79,0.00014246,2]
[332762534,1721507454704,-501.72983271,0.00014246,2]
[332762535,1721507454713,-874.33,0.00014246,2]
[332762536,1721507454723,-500.0,0.00014246,2]
[332762537,1721507454732,-500.0,0.00014246,2]
[332762538,1721507454742,-500.0,0.00014246,2]
[332762539,1721507454753,-502.63355936,0.00014246,2]
[332762540,1721507454764,-512.82091932,0.00014246,2]
[332762541,1721507454774,-555.88,0.00014246,2]
[332762542,1721507454785,-632.84,0.00014246,2]
[332762543,1721507454795,-500.0,0.00014246,2]
[332762544,1721507454805,-208.87,0.00014246,2]
[332762545,1721507454816,-500.0,0.00014246,2]
[332762546,1721507454828,-604.8,0.00014246,2]
[332762547,1721507454837,-500.0,0.00014246,2]
[332762548,1721507454849,-500.0,0.00014246,2]
[332762549,1721507454860,-500.0,0.00014246,2]
[332762550,1721507454870,-1853.19,0.00014246,2]
[332762551,1721507454881,-500.0,0.00014246,2]
[332762552,1721507454890,-500.0,0.00014246,2]
[332762553,1721507454900,-500.0,0.00014246,2]
[332762554,1721507454910,-1845.627948,0.00014246,2]
[332762555,1721507454919,-500.0,0.00014246,2]
[332762556,1721507454931,-1845.627948,0.00014246,2]
[332762557,1721507454941,-568.79,0.00014246,2]
[332762558,1721507454953,-500.0,0.00014246,2]
[332762559,1721507454963,-774.02,0.00014246,2]
[332762560,1721507454974,-500.0,0.00014246,2]
[332762561,1721507454985,-500.0,0.00014246,2]
[332762562,1721507454995,-151.0,0.00014246,2]
[332762563,1721507455005,-800.39,0.00014246,2]
[332762564,1721507455015,-500.0,0.00014246,2]
[332762565,1721507455025,-1327.2,0.00014246,2]
[332762566,1721507455035,-562.63316697,0.00014246,2]
[332762567,1721507455045,-151.0,0.00014246,2]
[332762568,1721507455055,-902.78,0.00014246,2]
[332762569,1721507455067,-918.39,0.00014246,2]
[332762570,1721507455076,-500.0,0.00014246,2]
[332762571,1721507455086,-846.58,0.00014246,2]
[332762572,1721507455095,-641.37526896,0.00014246,2]
[332762573,1721507455105,-157.78037707,0.00014246,2]
[332762574,1721507455115,-533.42,0.00014246,2]
[332762575,1721507455124,-500.0,0.00014246,2]
[332762576,1721507455134,-500.0,0.00014246,2]
[332762577,1721507455143,-983.38,0.00014246,2]
[332762578,1721507455153,-507.40824382,0.00014246,2]
[332762579,1721507455163,-601.67470916,0.00014246,2]
[332762580,1721507455172,-2661.93,0.00014246,2]
[332762581,1721507455182,-500.0,0.00014246,2]
[332762582,1721507455192,-516.51303496,0.00014246,2]
[332762583,1721507455201,-1796.13,0.00014246,2]
[332762584,1721507455212,-1825.24,0.00014246,2]
[332762585,1721507455222,-500.0,0.00014246,2]
[332762586,1721507455232,-500.0,0.00014246,2]
[332762587,1721507455242,-500.0,0.00014246,2]
[332762588,1721507455252,-2146.19,0.00014246,2]
[332762589,1721507455262,-500.0,0.00014246,2]
[332762590,1721507455271,-500.0,0.00014246,2]
[332762591,1721507455280,-500.0,0.00014246,2]
[332762592,1721507455290,-500.0,0.00014246,2]
[332762593,1721507455299,-500.0,0.00014246,2]
[332762594,1721507455308,-500.0,0.00014246,2]
[332762595,1721507455318,-500.0,0.00014246,2]
[332762596,1721507455328,-500.0,0.00014246,2]
[332762597,1721507455339,-500.0,0.00014246,2]
[332762598,1721507455350,-500.0,0.00014246,2]
[332762599,1721507455360,-2189.06,0.00014246,2]
[332762600,1721507455370,-500.0,0.00014246,2]
[332762601,1721507455379,-500.0,0.00014246,2]
[332762602,1721507455388,-575.38,0.00014246,2]
[332762603,1721507455398,-500.0,0.00014246,2]
[332762604,1721507455408,-500.0,0.00014246,2]
[332762605,1721507455417,-2105.24,0.00014246,2]
[332762606,1721507455426,-724.24,0.00014246,2]
[332762607,1721507455435,-500.0,0.00014246,2]
[332762608,1721507455445,-500.0,0.00014246,2]
[332762609,1721507455455,-500.0,0.00014246,2]
[332762610,1721507455465,-500.0,0.00014246,2]
[332762611,1721507455474,-500.0,0.00014246,2]
[332762612,1721507455483,-583.13,0.00014246,2]
[332762613,1721507455493,-500.0,0.00014246,2]
[332762614,1721507455503,-963.1,0.00014246,2]
[332762615,1721507455512,-500.0,0.00014246,2]
[332762616,1721507455522,-500.0,0.00014246,2]
[332762617,1721507455531,-528.05,0.00014246,2]
[332762618,1721507455541,-500.0,0.00014246,2]
[332762619,1721507455551,-776.96,0.00014246,2]
[332762620,1721507455560,-1350.44,0.00014246,2]
[332762621,1721507455569,-500.0,0.00014246,2]
[332762622,1721507455579,-806.85,0.00014246,2]
[332762623,1721507455588,-500.0,0.00014246,2]
[332762624,1721507455598,-500.0,0.00014246,2]
[332762625,1721507455609,-1833.59,0.00014246,2]
[332762626,1721507455619,-1111.94,0.00014246,2]
[332762627,1721507455629,-3866.05,0.00014246,2]
[332762628,1721507455638,-500.0,0.00014246,2]
[332762629,1721507455648,-500.0,0.00014246,2]
[332762630,1721507455657,-720.16,0.00014246,2]
[332762631,1721507455667,-1045.95,0.00014246,2]
[332762632,1721507455676,-2426.91,0.00014246,2]
[332762633,1721507455686,-500.0,0.00014246,2]
[332762634,1721507455696,-500.0,0.00014246,2]
[332762635,1721507455705,-1586.84,0.00014246,2]
[332762636,1721507455715,-500.0,0.00014246,2]
[332762637,1721507455725,-500.0,0.00014246,2]
[332762638,1721507455734,-653.69,0.00014246,2]
[332762639,1721507455743,-889.11,0.00014246,2]
[332762640,1721507455753,-2116.62,0.00014246,2]
[332762641,1721507455762,-500.0,0.00014246,2]
[332762642,1721507455772,-3632.24,0.00014246,2]
[332762643,1721507455781,-1237.75,0.00014246,2]
[332762644,1721507455791,-4757.55,0.00014246,2]
[332762645,1721507455800,-500.0,0.00014246,2]
[332762646,1721507455810,-622.39,0.00014246,2]
[332762647,1721507455819,-2898.13,0.00014246,2]
[332762648,1721507455829,-782.62,0.00014246,2]
[332762649,1721507455838,-367.30137337,0.00014246,2]
[332762650,1721507455848,-500.0,0.00014246,2]
[332762651,1721507455858,-2959.65,0.00014246,2]
[332762652,1721507455867,-500.0,0.00014246,2]
[332762653,1721507455877,-500.0,0.00014246,2]
[332762654,1721507455886,-500.0,0.00014246,2]
[332762655,1721507455895,-762.0,0.00014246,2]
[332762656,1721507455905,-2539.74,0.00014246,2]
[332762657,1721507455914,-500.0,0.00014246,2]
[332762658,1721507455924,-620.28,0.00014246,2]
[332762659,1721507455933,-500.0,0.00014246,2]
[332762660,1721507455942,-5656.32,0.00014246,2]
[332762661,1721507455951,-511.02301535,0.00014246,2]
[332762662,1721507455960,-558.88,0.00014246,2]
[332762663,1721507455970,-504.01346212,0.00014246,2]
[332762664,1721507455979,-3610.2,0.00014246,2]
[332762665,1721507455988,-653.11,0.00014246,2]
[332762666,1721507455998,-500.0,0.00014246,2]
[332762667,1721507456007,-922.66,0.00014246,2]
[332762668,1721507456017,-500.0,0.00014246,2]
[332762669,1721507456026,-535.04149051,0.00014246,2]
[332762670,1721507456036,-500.0,0.00014246,2]
[332762671,1721507456045,-9525.09,0.00014246,2]
[332762672,1721507456055,-1636.19,0.00014246,2]
[332762673,1721507456064,-500.0,0.00014246,2]
[332762674,1721507456074,-521.4783236,0.00014246,2]
[332762675,1721507456084,-2521.08,0.00014246,2]
[332762676,1721507456094,-1876.24,0.00014246,2]
[332762677,1721507456104,-5492.89,0.00014246,2]
[332762678,1721507456114,-668.41,0.00014246,2]
[332762679,1721507456124,-2936.55,0.00014246,2]
[332762680,1721507456135,-688.02,0.00014246,2]
[332762681,1721507456145,-1164.01,0.00014246,2]
[332762682,1721507456155,-500.0,0.00014246,2]
[332762683,1721507456164,-500.0,0.00014246,2]
[332762684,1721507456173,-353.74643827,0.00014246,2]
[332762685,1721507456183,-500.0,0.00014246,2]
[332762686,1721507456193,-500.0,0.00014246,2]
[332762687,1721507456202,-597.65,0.00014246,2]
[332762688,1721507456212,-500.0,0.00014246,2]
[332762689,1721507456223,-500.0,0.00014246,2]
[332762690,1721507456232,-615.32,0.00014246,2]
[332762691,1721507456242,-680.97,0.00014246,2]
[332762692,1721507456252,-5204.55,0.00014246,2]
[332762693,1721507456261,-500.0,0.00014246,2]
[332762694,1721507456272,-500.0,0.00014246,2]
[332762695,1721507456284,-534.36,0.00014246,2]
[332762696,1721507456294,-500.0,0.00014246,2]
[332762697,1721507456303,-223.085694,0.00014246,2]
[332762698,1721507456313,-223.085694,0.00014246,2]
[332762699,1721507456323,-18390.94,0.00014246,2]
[332762700,1721507456332,-500.0,0.00014246,2]
[332762701,1721507456342,-500.0,0.00014246,2]
[332762702,1721507456352,-3826.08,0.00014246,2]
[332762703,1721507456364,-993.33,0.00014246,2]
[332762704,1721507456375,-694.69,0.00014246,2]
[332762705,1721507456384,-500.0,0.00014246,2]
[332762706,1721507456394,-500.0,0.00014246,2]
[332762707,1721507456404,-2030.73,0.00014246,2]
[332762708,1721507456413,-500.0,0.00014246,2]
[332762709,1721507456423,-650.96,0.00014246,2]
[332762710,1721507456433,-2230.68,0.00014246,2]
[332762711,1721507456443,-1066.37,0.00014246,2]
[332762712,1721507456452,-3050.09,0.00014246,2]
[332762713,1721507456462,-500.0,0.00014246,2]
[332762714,1721507456472,-500.0,0.00014246,2]
[332762715,1721507456481,-11096.32,0.00014246,2]
[332762716,1721507456491,-500.0,0.00014246,2]
[332762717,1721507456501,-732.38,0.00014246,2]
[332762718,1721507456511,-4979.9,0.00014246,2]
[332762719,1721507456520,-606.15,0.00014246,2]
[332762720,1721507456530,-500.0,0.00014246,2]
[332762721,1721507456539,-500.0,0.00014246,2]
[332762722,1721507456549,-500.0,0.00014246,2]
[332762723,1721507456559,-1373.89,0.00014246,2]
[332762724,1721507456570,-2679.12,0.00014246,2]
[332762725,1721507456580,-4593.9,0.00014246,2]
[332762726,1721507456590,-500.0,0.00014246,2]
[332762727,1721507456600,-3152.44,0.00014246,2]
[332762728,1721507456609,-2055.25,0.00014246,2]
[332762729,1721507456619,-500.0,0.00014246,2]
[332762730,1721507456629,-500.0,0.00014246,2]
[332762731,1721507456638,-1077.09,0.00014246,2]
[332762732,1721507456648,-615.57,0.00014246,2]
[332762733,1721507456658,-500.0,0.00014246,2]
[332762734,1721507456667,-653.33,0.00014246,2]
[332762735,1721507456677,-500.0,0.00014246,2]
[332762736,1721507456687,-1961.3,0.00014246,2]
[332762737,1721507456697,-1149.23,0.00014246,2]
[332762738,1721507456708,-588.32,0.00014246,2]
[332762739,1721507456718,-500.0,0.00014246,2]
[332762740,1721507456728,-523.71,0.00014246,2]
[332762741,1721507456738,-1717.99,0.00014246,2]
[332762742,1721507456748,-453.62559309,0.00014246,2]
[332762743,1721507456758,-611.84,0.00014246,2]
[332762744,1721507456767,-1361.98,0.00014246,2]
[332762745,1721507456777,-500.0,0.00014246,2]
[332762746,1721507456787,-2600.56,0.00014246,2]
[332762747,1721507456797,-3138.15,0.00014246,2]
[332762748,1721507456808,-1456.198574,0.00014246,2]
[332762749,1721507456817,-1486.97,0.00014246,2]
[332762750,1721507456827,-500.0,0.00014246,2]
[332762751,1721507456837,-2758.06,0.00014246,2]
[332762752,1721507456847,-500.0,0.00014246,2]
[332762753,1721507456858,-500.0,0.00014246,2]
[332762754,1721507456868,-1233.94399899,0.00014246,2]
[332762755,1721507457226,-222.25457501,0.00014246,2]
[332762756,1721507457236,-500.0,0.00014246,2]